[Event "Titled Tuesday Blitz April 25 Late 2023"]
[White "Arencibia Monduy, Antonio"]
[Black "Nakamura, Hikaru"]
[WhiteFideId "3507939"]
[BlackFideId "2016192"]
[WhiteElo "2122"]
[BlackElo "2885"]
[Result "0-1"]
[Round "01"]
[TimeControl "180+2"]
[Date "2023.04.25"]
[WhiteClock "0:00:02"]
[BlackClock "0:00:54"]

1. e4 {[%clk 0:03:00]}  g6 {[%clk 0:02:57]} 2. Nf3 {[%clk 0:03:00]}  Bg7 {[%clk 0:02:55]} 3. d4 {[%clk 0:03:00]}  d6 {[%clk 0:02:54]} 4. Bd3 {[%clk 0:02:58]}  e5 {[%clk 0:02:53]} 5. dxe5 {[%clk 0:02:57]}  dxe5 {[%clk 0:02:53]} 6. O-O {[%clk 0:02:55]}  Nd7 {[%clk 0:02:54]} 7. Nc3 {[%clk 0:02:55]}  c6 {[%clk 0:02:52]} 8. Bc4 {[%clk 0:02:50]}  Ngf6 {[%clk 0:02:50]} 9. Re1 {[%clk 0:02:51]}  O-O {[%clk 0:02:47]} 10. a4 {[%clk 0:02:50]}  a5 {[%clk 0:02:47]} 11. Qe2 {[%clk 0:02:46]}  h6 {[%clk 0:02:46]} 12. h3 {[%clk 0:02:46]}  Re8 {[%clk 0:02:46]} 13. Be3 {[%clk 0:02:45]}  Qc7 {[%clk 0:02:45]} 14. Rad1 {[%clk 0:02:44]}  Nf8 {[%clk 0:02:40]} 15. Qd2 {[%clk 0:02:39]}  Kh7 {[%clk 0:02:37]} 16. Qd6 {[%clk 0:02:39]}  Qxd6 {[%clk 0:02:25]} 17. Rxd6 {[%clk 0:02:40]}  Kg8 {[%clk 0:02:24]} 18. Red1 {[%clk 0:02:20]}  Nh5 {[%clk 0:02:10]} 19. Bb3 {[%clk 0:01:55]}  Ne6 {[%clk 0:02:05]} 20. g3 {[%clk 0:01:47]}  Nf8 {[%clk 0:01:45]} 21. Kg2 {[%clk 0:01:45]}  Nf6 {[%clk 0:01:42]} 22. g4 {[%clk 0:01:37]}  N6h7 {[%clk 0:01:32]} 23. Nd2 {[%clk 0:00:47]}  Be6 {[%clk 0:01:27]} 24. Nc4 {[%clk 0:00:44]}  Ng5 {[%clk 0:01:20]} 25. f3 {[%clk 0:00:43]}  Bxc4 {[%clk 0:01:17]} 26. Bxc4 {[%clk 0:00:43]}  Nge6 {[%clk 0:01:18]} 27. Ne2 {[%clk 0:00:40]}  Kh7 {[%clk 0:01:16]} 28. Bb3 {[%clk 0:00:40]}  Bf6 {[%clk 0:01:16]} 29. c3 {[%clk 0:00:33]}  Be7 {[%clk 0:01:15]} 30. R6d2 {[%clk 0:00:32]}  Kg7 {[%clk 0:01:15]} 31. f4 {[%clk 0:00:27]}  Bc5 {[%clk 0:01:13]} 32. Kf3 {[%clk 0:00:15]}  Bxe3 {[%clk 0:01:11]} 33. Kxe3 {[%clk 0:00:15]}  exf4+ {[%clk 0:01:05]} 34. Nxf4 {[%clk 0:00:16]}  Nc5 {[%clk 0:01:06]} 35. Bc2 {[%clk 0:00:16]}  Nh7 {[%clk 0:01:07]} 36. b4 {[%clk 0:00:11]}  axb4 {[%clk 0:01:04]} 37. cxb4 {[%clk 0:00:12]}  Nxa4 {[%clk 0:01:05]} 38. Rd7 {[%clk 0:00:11]}  Nb2 {[%clk 0:01:02]} 39. R1d4 {[%clk 0:00:09]}  b5 {[%clk 0:00:56]} 40. Kd2 {[%clk 0:00:08]}  Nc4+ {[%clk 0:00:56]} 41. Kc3 {[%clk 0:00:07]}  Ra3+ {[%clk 0:00:56]} 42. Bb3 {[%clk 0:00:07]}  Nf6 {[%clk 0:00:56]} 43. Rc7 {[%clk 0:00:06]}  Nxe4+ {[%clk 0:00:56]} 44. Rxe4 {[%clk 0:00:04]}  Rxe4 {[%clk 0:00:56]} 45. Nd3 {[%clk 0:00:01]}  Re3 {[%clk 0:00:55]} 46. Rd7 {[%clk 0:00:02]}  Ne5 {[%clk 0:00:54]} 0-1


[Site "https://www.chess.com"]

[Event "Titled Tuesday Blitz April 25 Late 2023"]
[White "Firouzja, Alireza"]
[Black "Kepeshchuk, Mykhaylo"]
[WhiteFideId "12573981"]
[BlackFideId "14113139"]
[WhiteElo "2904"]
[BlackElo "2279"]
[Result "1-0"]
[Round "01"]
[TimeControl "180+2"]
[Date "2023.04.25"]
[WhiteClock "0:00:39"]
[BlackClock "0:00:01"]

1. d4 {[%clk 0:02:58]}  Nf6 {[%clk 0:02:53]} 2. c4 {[%clk 0:02:58]}  c5 {[%clk 0:02:54]} 3. d5 {[%clk 0:02:57]}  b5 {[%clk 0:02:53]} 4. cxb5 {[%clk 0:02:55]}  a6 {[%clk 0:02:54]} 5. e3 {[%clk 0:02:54]}  g6 {[%clk 0:02:53]} 6. Nc3 {[%clk 0:02:52]}  Bg7 {[%clk 0:02:54]} 7. a4 {[%clk 0:02:47]}  O-O {[%clk 0:02:53]} 8. Ra3 {[%clk 0:02:46]}  e6 {[%clk 0:02:52]} 9. Bc4 {[%clk 0:02:23]}  Bb7 {[%clk 0:02:42]} 10. Nge2 {[%clk 0:02:20]}  axb5 {[%clk 0:02:18]} 11. axb5 {[%clk 0:02:18]}  Rxa3 {[%clk 0:02:07]} 12. bxa3 {[%clk 0:02:19]}  exd5 {[%clk 0:02:07]} 13. Ba2 {[%clk 0:02:18]}  d4 {[%clk 0:01:47]} 14. exd4 {[%clk 0:02:14]}  cxd4 {[%clk 0:01:47]} 15. Qxd4 {[%clk 0:02:02]}  Ne4 {[%clk 0:01:42]} 16. Qb4 {[%clk 0:01:57]}  Nxc3 {[%clk 0:01:37]} 17. Nxc3 {[%clk 0:01:58]}  Bxg2 {[%clk 0:01:25]} 18. Rg1 {[%clk 0:01:57]}  Re8+ {[%clk 0:01:04]} 19. Be3 {[%clk 0:01:57]}  Bb7 {[%clk 0:00:55]} 20. Nd5 {[%clk 0:01:53]}  d6 {[%clk 0:00:37]} 21. Kf1 {[%clk 0:01:46]}  Qc8 {[%clk 0:00:28]} 22. Qxd6 {[%clk 0:01:24]}  Qh3+ {[%clk 0:00:22]} 23. Ke2 {[%clk 0:01:23]}  Qh5+ {[%clk 0:00:13]} 24. Kd2 {[%clk 0:01:19]}  Qh4 {[%clk 0:00:06]} 25. Qc7 {[%clk 0:00:51]}  Bxd5 {[%clk 0:00:04]} 26. Bxd5 {[%clk 0:00:51]}  Rd8 {[%clk 0:00:02]} 27. Qxf7+ {[%clk 0:00:50]}  Kh8 {[%clk 0:00:03]} 28. Rd1 {[%clk 0:00:41]}  Qc4 {[%clk 0:00:01]} 29. Qg8+ {[%clk 0:00:39]} 1-0


[Site "https://www.chess.com"]

[Event "Titled Tuesday Blitz April 25 Late 2023"]
[White "Lopez Gracia, Fernando"]
[Black "Duda, Jan-Krzysztof"]
[WhiteFideId "2207184"]
[BlackFideId "1170546"]
[WhiteElo "2255"]
[BlackElo "2790"]
[Result "0-1"]
[Round "01"]
[TimeControl "180+2"]
[Date "2023.04.26"]
[WhiteClock "0:01:45"]
[BlackClock "0:02:11"]

1. c4 {[%clk 0:02:53]}  e6 {[%clk 0:02:57]} 2. Nf3 {[%clk 0:02:53]}  Nf6 {[%clk 0:02:57]} 3. g3 {[%clk 0:02:53]}  b6 {[%clk 0:02:54]} 4. Bg2 {[%clk 0:02:52]}  Bb7 {[%clk 0:02:55]} 5. O-O {[%clk 0:02:53]}  Be7 {[%clk 0:02:53]} 6. d4 {[%clk 0:02:52]}  c6 {[%clk 0:02:51]} 7. Nc3 {[%clk 0:02:46]}  d5 {[%clk 0:02:51]} 8. b3 {[%clk 0:02:47]}  O-O {[%clk 0:02:51]} 9. Bf4 {[%clk 0:02:47]}  Nbd7 {[%clk 0:02:49]} 10. Qc2 {[%clk 0:02:48]}  dxc4 {[%clk 0:02:47]} 11. bxc4 {[%clk 0:02:48]}  c5 {[%clk 0:02:48]} 12. d5 {[%clk 0:02:18]}  exd5 {[%clk 0:02:48]} 13. cxd5 {[%clk 0:02:18]}  Bxd5 {[%clk 0:02:44]} 14. Nxd5 {[%clk 0:02:12]}  Nxd5 {[%clk 0:02:45]} 15. Rfd1 {[%clk 0:02:02]}  Nxf4 {[%clk 0:02:44]} 16. gxf4 {[%clk 0:02:03]}  Qc7 {[%clk 0:02:39]} 17. Qf5 {[%clk 0:02:02]}  Rad8 {[%clk 0:02:36]} 18. Ng5 {[%clk 0:01:54]}  g6 {[%clk 0:02:32]} 19. Qh3 {[%clk 0:01:52]}  Bxg5 {[%clk 0:02:28]} 20. fxg5 {[%clk 0:01:52]}  Ne5 {[%clk 0:02:28]} 21. Rd5 {[%clk 0:01:48]}  Rxd5 {[%clk 0:02:24]} 22. Bxd5 {[%clk 0:01:48]}  Rd8 {[%clk 0:02:16]} 23. e4 {[%clk 0:01:48]}  c4 {[%clk 0:02:15]} 24. Rc1 {[%clk 0:01:45]}  b5 {[%clk 0:02:12]} 25. f4 {[%clk 0:01:44]}  Nd3 {[%clk 0:02:11]} 26. Qxd3 {[%clk 0:01:45]}  Qb6+ {[%clk 0:02:11]} 0-1


[Site "https://www.chess.com"]

[Event "Titled Tuesday Blitz April 25 Late 2023"]
[White "Bluebaum, Matthias"]
[Black "Jaskolka, Tomasz"]
[WhiteFideId "24651516"]
[BlackFideId "1170791"]
[WhiteElo "2638"]
[BlackElo "2155"]
[Result "1-0"]
[Round "01"]
[TimeControl "180+2"]
[Date "2023.04.25"]
[WhiteClock "0:00:01"]
[BlackClock "0:00:00"]

1. d4 {[%clk 0:00:01]}  d5 {[%clk 0:00:01]} 2. c4 {[%clk 0:00:01]}  e5 {[%clk 0:00:01]} 3. dxe5 {[%clk 0:00:01]}  d4 {[%clk 0:00:01]} 4. Nf3 {[%clk 0:00:01]}  Nc6 {[%clk 0:00:01]} 5. a3 {[%clk 0:00:01]}  a5 {[%clk 0:00:01]} 6. g3 {[%clk 0:00:01]}  Nge7 {[%clk 0:00:01]} 7. Nbd2 {[%clk 0:00:01]}  Ng6 {[%clk 0:00:01]} 8. Nb3 {[%clk 0:00:01]}  Ngxe5 {[%clk 0:00:01]} 9. Nxe5 {[%clk 0:00:01]}  Nxe5 {[%clk 0:00:01]} 10. Qxd4 {[%clk 0:00:01]}  Qxd4 {[%clk 0:00:01]} 11. Nxd4 {[%clk 0:00:01]}  Nxc4 {[%clk 0:00:01]} 12. e4 {[%clk 0:00:01]}  Nd6 {[%clk 0:00:01]} 13. e5 {[%clk 0:00:01]}  Nf5 {[%clk 0:00:01]} 14. Nb5 {[%clk 0:00:01]}  Kd8 {[%clk 0:00:01]} 15. Bg5+ {[%clk 0:00:01]}  Be7 {[%clk 0:00:01]} 16. Bxe7+ {[%clk 0:00:01]}  Kxe7 {[%clk 0:00:01]} 17. Nxc7 {[%clk 0:00:01]}  Rb8 {[%clk 0:00:01]} 18. Bh3 {[%clk 0:00:01]}  Nd4 {[%clk 0:00:01]} 19. Nd5+ {[%clk 0:00:01]}  Kd8 {[%clk 0:00:01]} 20. O-O-O {[%clk 0:00:01]}  Nb3+ {[%clk 0:00:00]} 21. Kc2 {[%clk 0:00:01]}  Bxh3 {[%clk 0:00:00]} 22. Kxb3 {[%clk 0:00:01]}  Be6 {[%clk 0:00:00]} 23. Ka4 {[%clk 0:00:01]}  Kd7 {[%clk 0:00:00]} 24. Nb6+ {[%clk 0:00:01]}  Kc6 {[%clk 0:00:00]} 25. Rd6+ {[%clk 0:00:01]}  Kc7 {[%clk 0:00:00]} 26. Rc1+ {[%clk 0:00:01]}  Bc4 {[%clk 0:00:00]} 27. Rxc4# {[%clk 0:00:01]} 1-0


[Site "https://www.chess.com"]

[Event "Titled Tuesday Blitz April 25 Late 2023"]
[White "Kollars, Dmitrij"]
[Black "Rios Escobar, Adan"]
[WhiteFideId "12909572"]
[BlackFideId "3403645"]
[WhiteElo "2584"]
[BlackElo "2234"]
[Result "1-0"]
[Round "01"]
[TimeControl "180+2"]
[Date "2023.04.25"]
[WhiteClock "0:00:39"]
[BlackClock "0:00:02"]

1. Nf3 {[%clk 0:02:58]}  Nf6 {[%clk 0:02:59]} 2. c4 {[%clk 0:02:58]}  g6 {[%clk 0:02:59]} 3. Nc3 {[%clk 0:02:56]}  Bg7 {[%clk 0:02:58]} 4. g3 {[%clk 0:02:54]}  c5 {[%clk 0:02:58]} 5. Bg2 {[%clk 0:02:54]}  O-O {[%clk 0:02:58]} 6. O-O {[%clk 0:02:53]}  Nc6 {[%clk 0:02:59]} 7. d4 {[%clk 0:02:53]}  cxd4 {[%clk 0:02:59]} 8. Nxd4 {[%clk 0:02:54]}  Qa5 {[%clk 0:03:00]} 9. e3 {[%clk 0:02:50]}  d6 {[%clk 0:02:58]} 10. Nb3 {[%clk 0:02:43]}  Qh5 {[%clk 0:02:41]} 11. Qxh5 {[%clk 0:02:42]}  Nxh5 {[%clk 0:02:41]} 12. c5 {[%clk 0:02:42]}  Rd8 {[%clk 0:02:24]} 13. Rd1 {[%clk 0:02:41]}  a5 {[%clk 0:02:20]} 14. cxd6 {[%clk 0:02:40]}  Bg4 {[%clk 0:01:49]} 15. f3 {[%clk 0:02:16]}  Be6 {[%clk 0:01:36]} 16. dxe7 {[%clk 0:02:15]}  Nxe7 {[%clk 0:01:24]} 17. Nd4 {[%clk 0:02:10]}  a4 {[%clk 0:01:08]} 18. a3 {[%clk 0:01:57]}  Bb3 {[%clk 0:01:05]} 19. Nxb3 {[%clk 0:01:56]}  axb3 {[%clk 0:01:06]} 20. Bd2 {[%clk 0:01:54]}  Rd7 {[%clk 0:00:50]} 21. Be1 {[%clk 0:01:53]}  Rad8 {[%clk 0:00:49]} 22. Rxd7 {[%clk 0:01:51]}  Rxd7 {[%clk 0:00:50]} 23. Bf1 {[%clk 0:01:51]}  Nf6 {[%clk 0:00:31]} 24. Bc4 {[%clk 0:01:36]}  Nf5 {[%clk 0:00:31]} 25. Kf2 {[%clk 0:01:30]}  Bh6 {[%clk 0:00:25]} 26. e4 {[%clk 0:01:20]}  Be3+ {[%clk 0:00:15]} 27. Kg2 {[%clk 0:01:16]}  Nd4 {[%clk 0:00:15]} 28. Rd1 {[%clk 0:01:16]}  Nc2 {[%clk 0:00:14]} 29. Rxd7 {[%clk 0:01:02]}  Nxe1+ {[%clk 0:00:14]} 30. Kf1 {[%clk 0:01:00]}  Nxd7 {[%clk 0:00:14]} 31. Kxe1 {[%clk 0:01:01]}  Bc1 {[%clk 0:00:14]} 32. Na4 {[%clk 0:00:54]}  Ne5 {[%clk 0:00:15]} 33. Be2 {[%clk 0:00:53]}  b5 {[%clk 0:00:13]} 34. Kd1 {[%clk 0:00:51]}  bxa4 {[%clk 0:00:13]} 35. Kxc1 {[%clk 0:00:51]}  Nd7 {[%clk 0:00:12]} 36. Kd2 {[%clk 0:00:50]}  f5 {[%clk 0:00:11]} 37. exf5 {[%clk 0:00:47]}  gxf5 {[%clk 0:00:11]} 38. Kc3 {[%clk 0:00:48]}  Nb6 {[%clk 0:00:10]} 39. Kb4 {[%clk 0:00:47]}  Kg7 {[%clk 0:00:10]} 40. Kc5 {[%clk 0:00:42]}  Nd7+ {[%clk 0:00:10]} 41. Kb5 {[%clk 0:00:42]}  Nf6 {[%clk 0:00:08]} 42. Kxa4 {[%clk 0:00:41]}  Nd5 {[%clk 0:00:08]} 43. Kxb3 {[%clk 0:00:41]}  Kf6 {[%clk 0:00:08]} 44. Kc4 {[%clk 0:00:40]}  Ke5 {[%clk 0:00:08]} 45. Kc5 {[%clk 0:00:40]}  f4 {[%clk 0:00:08]} 46. a4 {[%clk 0:00:39]}  fxg3 {[%clk 0:00:03]} 47. hxg3 {[%clk 0:00:40]}  Nc7 {[%clk 0:00:03]} 48. a5 {[%clk 0:00:40]}  Ne6+ {[%clk 0:00:02]} 49. Kb6 {[%clk 0:00:40]}  Nd4 {[%clk 0:00:02]} 50. Bd1 {[%clk 0:00:40]}  Kd6 {[%clk 0:00:02]} 51. a6 {[%clk 0:00:39]} 1-0


[Site "https://www.chess.com"]

[Event "Titled Tuesday Blitz April 25 Late 2023"]
[White "Mikhalsky, Vladimir"]
[Black "Martinez Alcantara, Jose Eduardo"]
[WhiteFideId "14144352"]
[BlackFideId "3805662"]
[WhiteElo "2236"]
[BlackElo "2711"]
[Result "0-1"]
[Round "01"]
[TimeControl "180+2"]
[Date "2023.04.25"]
[WhiteClock "0:00:24"]
[BlackClock "0:00:56"]

1. d4 {[%clk 0:02:56]}  Nf6 {[%clk 0:03:00]} 2. c4 {[%clk 0:02:55]}  e6 {[%clk 0:03:00]} 3. g3 {[%clk 0:02:55]}  Bb4+ {[%clk 0:02:59]} 4. Bd2 {[%clk 0:02:55]}  Qe7 {[%clk 0:02:59]} 5. Bg2 {[%clk 0:02:55]}  Bxd2+ {[%clk 0:02:59]} 6. Nxd2 {[%clk 0:02:55]}  d6 {[%clk 0:03:00]} 7. e3 {[%clk 0:02:49]}  O-O {[%clk 0:02:59]} 8. Ne2 {[%clk 0:02:48]}  e5 {[%clk 0:02:59]} 9. Qc2 {[%clk 0:02:48]}  Nc6 {[%clk 0:02:59]} 10. d5 {[%clk 0:02:39]}  Nb4 {[%clk 0:02:56]} 11. Qc3 {[%clk 0:02:35]}  c5 {[%clk 0:02:44]} 12. dxc6 {[%clk 0:02:26]}  Nxc6 {[%clk 0:02:43]} 13. O-O {[%clk 0:02:26]}  Bg4 {[%clk 0:02:43]} 14. Rfe1 {[%clk 0:02:21]}  Rad8 {[%clk 0:02:38]} 15. Ne4 {[%clk 0:02:20]}  Nxe4 {[%clk 0:02:28]} 16. Bxe4 {[%clk 0:02:20]}  Be6 {[%clk 0:02:29]} 17. Rad1 {[%clk 0:02:17]}  Qc7 {[%clk 0:02:29]} 18. b3 {[%clk 0:02:05]}  Ne7 {[%clk 0:02:24]} 19. Rc1 {[%clk 0:01:30]}  b6 {[%clk 0:02:17]} 20. Red1 {[%clk 0:01:29]}  Rd7 {[%clk 0:02:05]} 21. Qd3 {[%clk 0:01:29]}  g6 {[%clk 0:01:58]} 22. Nc3 {[%clk 0:01:28]}  a6 {[%clk 0:01:58]} 23. Nd5 {[%clk 0:01:27]}  Bxd5 {[%clk 0:01:58]} 24. Bxd5 {[%clk 0:01:28]}  Kg7 {[%clk 0:01:58]} 25. Bg2 {[%clk 0:01:27]}  Rfd8 {[%clk 0:01:57]} 26. h4 {[%clk 0:01:26]}  h5 {[%clk 0:01:56]} 27. Bh3 {[%clk 0:01:26]}  f5 {[%clk 0:01:56]} 28. Bg2 {[%clk 0:01:26]}  Ng8 {[%clk 0:01:53]} 29. Qc3 {[%clk 0:01:25]}  Nf6 {[%clk 0:01:53]} 30. Qb4 {[%clk 0:01:25]}  Qc5 {[%clk 0:01:47]} 31. Qc3 {[%clk 0:01:18]}  Rc8 {[%clk 0:01:39]} 32. Qd3 {[%clk 0:01:16]}  Qc7 {[%clk 0:01:36]} 33. Qd2 {[%clk 0:01:13]}  Qd8 {[%clk 0:01:33]} 34. Qb4 {[%clk 0:01:12]}  Rc5 {[%clk 0:01:32]} 35. Qa4 {[%clk 0:01:10]}  a5 {[%clk 0:01:30]} 36. Bd5 {[%clk 0:01:06]}  Qc7 {[%clk 0:01:29]} 37. Be6 {[%clk 0:01:04]}  Re7 {[%clk 0:01:29]} 38. Bc8 {[%clk 0:00:42]}  Qxc8 {[%clk 0:01:27]} 39. Rxd6 {[%clk 0:00:42]}  Qc7 {[%clk 0:01:25]} 40. Rcd1 {[%clk 0:00:41]}  f4 {[%clk 0:01:18]} 41. exf4 {[%clk 0:00:40]}  exf4 {[%clk 0:01:18]} 42. gxf4 {[%clk 0:00:38]}  Rf5 {[%clk 0:01:17]} 43. Qa3 {[%clk 0:00:33]}  Rf7 {[%clk 0:01:07]} 44. Qb2 {[%clk 0:00:29]}  Rxf4 {[%clk 0:01:01]} 45. Qe5 {[%clk 0:00:29]}  Rf5 {[%clk 0:00:59]} 46. Qc3 {[%clk 0:00:27]}  Qc5 {[%clk 0:00:59]} 47. R6d5 {[%clk 0:00:25]}  Qxf2+ {[%clk 0:00:57]} 48. Kh1 {[%clk 0:00:24]}  Qxh4+ {[%clk 0:00:58]} 49. Kg2 {[%clk 0:00:24]}  Rf2+ {[%clk 0:00:56]} 0-1


[Site "https://www.chess.com"]

[Event "Titled Tuesday Blitz April 25 Late 2023"]
[White "Fieberg, Samuel"]
[Black "Esipenko, Andrey"]
[WhiteFideId "12901717"]
[BlackFideId "24175439"]
[WhiteElo "2157"]
[BlackElo "2615"]
[Result "0-1"]
[Round "01"]
[TimeControl "180+2"]
[Date "2023.04.25"]
[WhiteClock "0:00:03"]
[BlackClock "0:01:17"]

1. e4 {[%clk 0:03:00]}  c6 {[%clk 0:02:54]} 2. d4 {[%clk 0:03:00]}  d5 {[%clk 0:02:55]} 3. exd5 {[%clk 0:03:01]}  cxd5 {[%clk 0:02:54]} 4. Nf3 {[%clk 0:03:02]}  Nf6 {[%clk 0:02:53]} 5. Bb5+ {[%clk 0:03:01]}  Bd7 {[%clk 0:02:52]} 6. Qe2 {[%clk 0:02:56]}  e6 {[%clk 0:02:41]} 7. Ne5 {[%clk 0:02:53]}  Be7 {[%clk 0:02:41]} 8. Nxd7 {[%clk 0:02:53]}  Nbxd7 {[%clk 0:02:37]} 9. O-O {[%clk 0:02:53]}  O-O {[%clk 0:02:37]} 10. c3 {[%clk 0:02:53]}  Ne4 {[%clk 0:02:35]} 11. Nd2 {[%clk 0:02:51]}  Nd6 {[%clk 0:02:32]} 12. Bd3 {[%clk 0:02:51]}  a6 {[%clk 0:02:28]} 13. Nf3 {[%clk 0:02:41]}  b5 {[%clk 0:02:28]} 14. Ne5 {[%clk 0:02:41]}  Nxe5 {[%clk 0:02:17]} 15. dxe5 {[%clk 0:02:42]}  Nc4 {[%clk 0:02:18]} 16. f4 {[%clk 0:02:25]}  g6 {[%clk 0:02:14]} 17. a4 {[%clk 0:02:14]}  Qb6+ {[%clk 0:01:57]} 18. Kh1 {[%clk 0:02:14]}  Qc6 {[%clk 0:01:58]} 19. a5 {[%clk 0:02:06]}  Qc7 {[%clk 0:01:50]} 20. b4 {[%clk 0:01:49]}  Rfd8 {[%clk 0:01:50]} 21. Ra2 {[%clk 0:01:42]}  d4 {[%clk 0:01:46]} 22. cxd4 {[%clk 0:01:22]}  Rxd4 {[%clk 0:01:46]} 23. Rc2 {[%clk 0:01:20]}  Rad8 {[%clk 0:01:41]} 24. Bxc4 {[%clk 0:01:16]}  Rxc4 {[%clk 0:01:41]} 25. Rxc4 {[%clk 0:01:16]}  Qxc4 {[%clk 0:01:23]} 26. Qxc4 {[%clk 0:01:14]}  bxc4 {[%clk 0:01:24]} 27. Ba3 {[%clk 0:00:27]}  Rd3 {[%clk 0:01:24]} 28. Ra1 {[%clk 0:00:25]}  c3 {[%clk 0:01:25]} 29. h3 {[%clk 0:00:10]}  Bxb4 {[%clk 0:01:20]} 30. Bxb4 {[%clk 0:00:09]}  c2 {[%clk 0:01:20]} 31. Bc3 {[%clk 0:00:02]}  Rd1+ {[%clk 0:01:18]} 32. Kh2 {[%clk 0:00:02]}  Rxa1 {[%clk 0:01:17]} 33. Bxa1 {[%clk 0:00:03]} 0-1


[Site "https://www.chess.com"]

[Event "Titled Tuesday Blitz April 25 Late 2023"]
[White "Karas, Marek"]
[Black "Chigaev, Maksim"]
[WhiteFideId "14928558"]
[BlackFideId "4108116"]
[WhiteElo "2233"]
[BlackElo "2547"]
[Result "1/2-1/2"]
[Round "01"]
[TimeControl "180+2"]
[Date "2023.04.25"]
[WhiteClock "0:00:04"]
[BlackClock "0:00:05"]

1. d4 {[%clk 0:02:58]}  Nf6 {[%clk 0:02:59]} 2. Nf3 {[%clk 0:02:58]}  g6 {[%clk 0:02:59]} 3. Bg5 {[%clk 0:02:58]}  Bg7 {[%clk 0:02:59]} 4. Nbd2 {[%clk 0:02:56]}  O-O {[%clk 0:03:00]} 5. e3 {[%clk 0:02:56]}  d6 {[%clk 0:02:59]} 6. Be2 {[%clk 0:02:52]}  Nc6 {[%clk 0:02:58]} 7. O-O {[%clk 0:02:52]}  Qe8 {[%clk 0:02:57]} 8. c3 {[%clk 0:02:43]}  e5 {[%clk 0:02:54]} 9. dxe5 {[%clk 0:02:44]}  Nxe5 {[%clk 0:02:53]} 10. Nxe5 {[%clk 0:02:44]}  Qxe5 {[%clk 0:02:54]} 11. Bf4 {[%clk 0:02:41]}  Qe7 {[%clk 0:02:54]} 12. h3 {[%clk 0:02:41]}  a5 {[%clk 0:02:34]} 13. a4 {[%clk 0:02:40]}  d5 {[%clk 0:02:33]} 14. Qb3 {[%clk 0:02:36]}  c6 {[%clk 0:02:29]} 15. Bf3 {[%clk 0:02:33]}  Be6 {[%clk 0:02:19]} 16. Qa3 {[%clk 0:02:26]}  Rfe8 {[%clk 0:02:13]} 17. Qxe7 {[%clk 0:02:26]}  Rxe7 {[%clk 0:02:14]} 18. Rfe1 {[%clk 0:02:18]}  Bf5 {[%clk 0:02:13]} 19. Bg5 {[%clk 0:02:05]}  Rd7 {[%clk 0:01:54]} 20. Nb3 {[%clk 0:02:03]}  h6 {[%clk 0:01:46]} 21. Bxf6 {[%clk 0:01:57]}  Bxf6 {[%clk 0:01:46]} 22. e4 {[%clk 0:01:58]}  dxe4 {[%clk 0:01:46]} 23. Bxe4 {[%clk 0:01:57]}  Bxe4 {[%clk 0:01:43]} 24. Rxe4 {[%clk 0:01:57]}  b6 {[%clk 0:01:40]} 25. Rae1 {[%clk 0:01:50]}  h5 {[%clk 0:01:31]} 26. Re8+ {[%clk 0:01:49]}  Rxe8 {[%clk 0:01:31]} 27. Rxe8+ {[%clk 0:01:50]}  Kg7 {[%clk 0:01:32]} 28. Kf1 {[%clk 0:01:45]}  Rd1+ {[%clk 0:01:24]} 29. Re1 {[%clk 0:01:44]}  Rd8 {[%clk 0:01:25]} 30. Ke2 {[%clk 0:01:40]}  Kf8 {[%clk 0:01:16]} 31. Rd1 {[%clk 0:01:40]}  Rxd1 {[%clk 0:01:16]} 32. Kxd1 {[%clk 0:01:40]}  Ke7 {[%clk 0:01:17]} 33. Ke2 {[%clk 0:01:39]}  Ke6 {[%clk 0:01:17]} 34. Nd2 {[%clk 0:01:36]}  Kd5 {[%clk 0:01:15]} 35. Kd3 {[%clk 0:01:36]}  b5 {[%clk 0:01:04]} 36. b3 {[%clk 0:01:31]}  Bg7 {[%clk 0:00:58]} 37. c4+ {[%clk 0:01:27]}  Kc5 {[%clk 0:00:58]} 38. Ne4+ {[%clk 0:01:21]}  Kb4 {[%clk 0:00:58]} 39. cxb5 {[%clk 0:01:21]}  cxb5 {[%clk 0:00:58]} 40. axb5 {[%clk 0:01:22]}  Kxb5 {[%clk 0:00:35]} 41. Nd6+ {[%clk 0:01:16]}  Kb4 {[%clk 0:00:36]} 42. Kc2 {[%clk 0:01:16]}  f5 {[%clk 0:00:36]} 43. Nf7 {[%clk 0:01:03]}  Bf6 {[%clk 0:00:32]} 44. Nd6 {[%clk 0:00:51]}  Bd4 {[%clk 0:00:28]} 45. f3 {[%clk 0:00:50]}  h4 {[%clk 0:00:25]} 46. Nb7 {[%clk 0:00:41]}  Be5 {[%clk 0:00:15]} 47. Nd8 {[%clk 0:00:36]}  Bf6 {[%clk 0:00:15]} 48. Ne6 {[%clk 0:00:34]}  Kb5 {[%clk 0:00:11]} 49. Nf4 {[%clk 0:00:32]}  g5 {[%clk 0:00:11]} 50. Nd5 {[%clk 0:00:33]}  Be5 {[%clk 0:00:04]} 51. Ne3 {[%clk 0:00:27]}  f4 {[%clk 0:00:05]} 52. Nd1 {[%clk 0:00:27]}  Bd4 {[%clk 0:00:02]} 53. Kd3 {[%clk 0:00:26]}  Bc5 {[%clk 0:00:02]} 54. Nc3+ {[%clk 0:00:24]}  Kb4 {[%clk 0:00:02]} 55. Kc2 {[%clk 0:00:25]}  Bd4 {[%clk 0:00:02]} 56. Ne4 {[%clk 0:00:24]}  Bb6 {[%clk 0:00:01]} 57. Nxg5 {[%clk 0:00:23]}  Kc5 {[%clk 0:00:01]} 58. Ne6+ {[%clk 0:00:22]}  Kd5 {[%clk 0:00:02]} 59. Nxf4+ {[%clk 0:00:23]}  Kd4 {[%clk 0:00:03]} 60. Kd2 {[%clk 0:00:19]}  Ba7 {[%clk 0:00:02]} 61. Ne2+ {[%clk 0:00:19]}  Ke5 {[%clk 0:00:03]} 62. Kd3 {[%clk 0:00:19]}  Kd5 {[%clk 0:00:03]} 63. g3 {[%clk 0:00:17]}  hxg3 {[%clk 0:00:03]} 64. Nxg3 {[%clk 0:00:17]}  Ke5 {[%clk 0:00:03]} 65. Ne2 {[%clk 0:00:18]}  Bf2 {[%clk 0:00:04]} 66. Kc4 {[%clk 0:00:18]}  Be1 {[%clk 0:00:05]} 67. Nd4 {[%clk 0:00:14]}  Kf4 {[%clk 0:00:04]} 68. Kd3 {[%clk 0:00:09]}  Bf2 {[%clk 0:00:04]} 69. Nc6 {[%clk 0:00:08]}  Kxf3 {[%clk 0:00:03]} 70. Nxa5 {[%clk 0:00:08]}  Kg3 {[%clk 0:00:04]} 71. Kc4 {[%clk 0:00:06]}  Kxh3 {[%clk 0:00:04]} 72. b4 {[%clk 0:00:06]}  Be1 {[%clk 0:00:05]} 73. Kb5 {[%clk 0:00:04]}  Bxb4 {[%clk 0:00:05]} 1/2-1/2


[Site "https://www.chess.com"]

[Event "Titled Tuesday Blitz April 25 Late 2023"]
[White "Svane, Frederik"]
[Black "Lorenzo De La Riva, Lazaro"]
[WhiteFideId "12923044"]
[BlackFideId "2268809"]
[WhiteElo "2502"]
[BlackElo "2294"]
[Result "1-0"]
[Round "01"]
[TimeControl "180+2"]
[Date "2023.04.25"]
[WhiteClock "0:00:01"]
[BlackClock "0:00:01"]

1. e4 {[%clk 0:00:01]}  c6 {[%clk 0:00:01]} 2. d4 {[%clk 0:00:01]}  d5 {[%clk 0:00:01]} 3. exd5 {[%clk 0:00:01]}  cxd5 {[%clk 0:00:01]} 4. c3 {[%clk 0:00:01]}  Nc6 {[%clk 0:00:01]} 5. Nf3 {[%clk 0:00:01]}  Nf6 {[%clk 0:00:01]} 6. Ne5 {[%clk 0:00:01]}  e6 {[%clk 0:00:01]} 7. Bd3 {[%clk 0:00:01]}  Bd6 {[%clk 0:00:01]} 8. f4 {[%clk 0:00:01]}  O-O {[%clk 0:00:01]} 9. Nd2 {[%clk 0:00:01]}  Qc7 {[%clk 0:00:01]} 10. O-O {[%clk 0:00:01]}  b6 {[%clk 0:00:01]} 11. Qe2 {[%clk 0:00:01]}  Ne7 {[%clk 0:00:01]} 12. g4 {[%clk 0:00:01]}  Bb7 {[%clk 0:00:01]} 13. Rf3 {[%clk 0:00:01]}  Ne4 {[%clk 0:00:01]} 14. Nxe4 {[%clk 0:00:01]}  dxe4 {[%clk 0:00:01]} 15. Bxe4 {[%clk 0:00:01]}  Bxe4 {[%clk 0:00:01]} 16. Qxe4 {[%clk 0:00:01]}  f5 {[%clk 0:00:01]} 17. gxf5 {[%clk 0:00:01]}  Nxf5 {[%clk 0:00:01]} 18. Bd2 {[%clk 0:00:01]}  Rf6 {[%clk 0:00:01]} 19. Qxa8+ {[%clk 0:00:01]} 1-0


[Site "https://www.chess.com"]